Cogmind - Beta 16 @@@ ROGUE MODE // 2025.10.30 @ 22:53:58 Player: cart Result: Self-destructed Performance ------------- Evolutions (5) 2500 Regions Visited (12) 2400 Robots Destroyed (57) 285 Value Destroyed (1166) 1166 Prototype IDs (20) 400 Alien Tech Used (0) 0 Bonus (831) 831 TOTAL SCORE: 7582 Bonus ------- High Alert Combat Kills 18 Follower Combat Kills 498 Registered with UFD 300 Met Optimus in HQ 500 Met Data Miner 300 Friendly Fire -785 Cogmind --------- Core Integrity 940/1000 Matter 280/300 Energy 150/150 System Corruption 0% Temperature Cool (0) Movement Flying (30) Location -5/Factory Parts ------- > --- POWER (1) -------- Micro Nuclear Core > --- PROPULSION (6) --- Xenon Bombardment Thruster Nuclear Pulse Thruster Field Propulsion Drive Q-thruster Impulse Thruster Array > --- UTILITY (8) ------ Medium Storage Unit Advanced Sensor Array Advanced Signal Interpreter Improved Propulsion Shielding Hacking Suite Hacking Suite Improved Hacking Suite System Shield > --- WEAPON (2) ------- Remote Datajack Spear > --- INVENTORY (10) --- Light Angular Momentum Engine Large Storage Unit Energy Well (350) Medium Matter Pod (100) Stasis Canceller Hacking Suite System Shield Long-range Missile Launcher Molecular Deconstructor Peak State ------------ > --- POWER ------------ Micro Nuclear Core > --- PROPULSION ------- Xenon Bombardment Thruster Nuclear Pulse Thruster Field Propulsion Drive Q-thruster Impulse Thruster Array > --- UTILITY ---------- Medium Storage Unit Advanced Sensor Array Advanced Signal Interpreter Improved Propulsion Shielding Hacking Suite Hacking Suite Improved Hacking Suite System Shield > --- WEAPON ----------- Remote Datajack Spear > --- INVENTORY -------- Light Angular Momentum Engine Large Storage Unit Energy Well Medium Matter Pod Stasis Canceller Hacking Suite System Shield Long-range Missile Launcher Molecular Deconstructor [Rating: 83] Favorites ----------- Power Ion Engine Engine Ion Engine Power Core Micro Nuclear Core Propulsion Light Treads Treads Light Treads Wheel Subdweller Monowheel Flight Unit Nuclear Pulse Thruster Utility Seismic Detector Device Seismic Detector Storage Huge Storage Unit Processor Advanced Signal Interpreter Hackware Hacking Suite Protection Improved Propulsion Shielding Weapon Light Cannon Ballistic Gun Assault Rifle Ballistic Cannon Light Cannon Launcher Long-range Missile Launcher Special Weapon Remote Datajack Impact Weapon Mace Piercing Weapon Spear Build | -11 -10 -10 -9 -9 -6 -6 -6 -6 -6 -6 -5 -5 ------- Run | Yrd Mat Sub Rec Scr Fac Was Fac Low Low Dat Pro Fac Slots Evolved 10 | . . . . . 8 . . . . . . 2 Power . | . . . . . . . . . . . . . Propulsion 4 | . . . . . 3 . . . . . . 1 Utility 6 | . . . . . 5 . . . . . . 1 Weapon . | . . . . . . . . . . . . . Parts Attached 54 | 7 1 4 2 3 19 4 9 1 1 . . 3 Power 4 | 1 . . . . 2 . . 1 . . . . Engine 2 | 1 . . . . 1 . . . . . . . Core 2 | . . . . . 1 . . 1 . . . . Reactor . | . . . . . . . . . . . . . Propulsion 19 | 2 . 2 1 . 6 4 2 . . . . 2 Treads 2 | 2 . . . . . . . . . . . . Leg . | . . . . . . . . . . . . . Wheel 3 | . . 2 1 . . . . . . . . . Hover . | . . . . . . . . . . . . . Flight 14 | . . . . . 6 4 2 . . . . 2 Utility 19 | 2 1 . . 1 9 . 4 . 1 . . 1 Device 6 | 1 . . . 1 2 . 1 . 1 . . . Storage 3 | 1 1 . . . 1 . . . . . . . Processor 4 | . . . . . 3 . 1 . . . . . Hackware 4 | . . . . . 2 . 2 . . . . . Protection 2 | . . . . . 1 . . . . . . 1 Artifact . | . . . . . . . . . . . . . Weapon 12 | 2 . 2 1 2 2 . 3 . . . . . Energy Gun . | . . . . . . . . . . . . . Energy Cannon . | . . . . . . . . . . . . . Ballistic Gun 2 | 2 . . . . . . . . . . . . Ballistic Cannon 3 | . . 2 1 . . . . . . . . . Launcher 3 | . . . . . . . 3 . . . . . Special Weapon 2 | . . . . 1 1 . . . . . . . Impact Weapon 1 | . . . . 1 . . . . . . . . Slashing Weapon . | . . . . . . . . . . . . . Piercing Weapon 1 | . . . . . 1 . . . . . . . Special Melee Weapon . | . . . . . . . . . . . . . Unidentified Prototypes 2 | . . . . 1 . . 1 . . . . . Parts Lost 5 | . . 2 . . . . 1 . 1 1 . . Power . | . . . . . . . . . . . . . Propulsion 4 | . . 1 . . . . 1 . 1 1 . . Utility . | . . . . . . . . . . . . . Weapon 1 | . . 1 . . . . . . . . . . Highest Loss Streak 1 | . . 1 . . . . 1 . 1 1 . . To Critical Strikes . | . . . . . . . . . . . . . Average Backups 11 | 3 7 11 14 20 9 10 9 9 8 8 8 8 Power 1 | . 1 1 2 2 1 2 1 1 1 1 1 1 Propulsion 3 | . 1 2 6 9 3 2 1 1 . . . . Utility 3 | . 1 2 3 4 2 3 4 5 5 5 5 5 Weapon 2 | . 3 4 3 3 1 2 1 2 2 2 1 2 Tool/Special . | . . . . . . . . . . . . . Unused Backups 19 | 1 1 . . 1 5 1 2 . . . . 8 Power 3 | . . . . . 2 . . . . . . 1 Propulsion 4 | . . . . . 2 1 1 . . . . . Utility 8 | 1 . . . 1 . . . . . . . 6 Weapon 4 | . 1 . . . 1 . 1 . . . . 1 Tool/Special . | . . . . . . . . . . . . . Average Slot Usage (%) 90 | . 100 99 98 75 88 93 91 91 93 92 86 84 Engine 8 | . 14 14 14 14 1 . . . . . . . Core 2 | . . . . . 4 6 6 6 6 6 6 5 Treads 8 | . 28 27 . . . . . . . . . . Wheel 7 | . . . 28 28 . . . . . . . . Flight 10 | . . . . . 26 26 26 26 26 25 20 20 Device 11 | . 14 14 14 14 12 6 6 6 6 6 6 5 Storage 10 | . 14 14 14 14 6 6 6 6 6 6 6 5 Processor 3 | . . . . . 12 13 10 6 6 6 6 5 Hackware 7 | . . . . . 9 13 19 26 26 26 26 23 Protection 1 | . . . . . 3 6 2 . . . . 3 Ballistic Gun 3 | . 28 . . . . . . . . . . . Ballistic Cannon 6 | . . 27 26 . . . . . . . . . Special Weapon 1 | . . . . . . 6 3 4 6 6 5 5 Impact Weapon 1 | . . . . 4 5 . . . . . . . Piercing Weapon 2 | . . . . . 2 6 6 6 6 6 6 5 Peak Build Rating 83 | 7 7 10 11 20 59 71 78 75 75 75 71 83 Average Rating 33 | 5 7 7 10 11 51 63 73 73 74 74 70 75 On Entrance 41 | . 7 7 9 8 16 59 71 70 75 75 70 70 Avg Prop Armor Cover (%) 4 | . . . 4 . . . . . . . . . Naked Turns . | . . . . . . . . . . . . . Heaviest Build 92 | 14 89 92 92 88 24 24 27 22 24 22 27 24 Greatest Support 43 | 40 40 40 40 30 31 34 36 35 35 35 30 43 Greatest Overweight (x) 7 | . 2 4 4 2 7 . . . . . . . Average Overweight (x) . | . . 2 2 2 . . . . . . . . Largest Inventory Capacity 25 | 8 25 25 25 25 25 10 10 10 10 10 10 10 Average Capacity 16 | 5 11 25 25 25 10 10 10 10 10 10 10 10 Most Carried 25 | 6 8 13 17 25 25 10 10 10 10 9 9 10 Average Carried 12 | 3 7 11 14 20 9 9 9 9 9 9 9 9 Final Capacity 25 | 8 25 25 25 25 10 10 10 10 10 10 10 10 Final Carried 24 | 4 8 12 17 24 10 10 10 10 9 9 9 10 Class Distribution -------------------- 59% | Mutant 16% | Hacker-Sprinter 15% | Hacker-Scout 5% | Hacker-Mutant 3% | Sprinter Dominant Class ---------------- Mutant | -10/Materials Mutant | -10/Subcaves Mutant | -9/Recycling Mutant | -9/Scraptown Hacker-Scout | -6/Factory Hacker-Scout | -6/Waste Hacker-Scout | -6/Factory Hacker-Sprinter | -6/Lower Caves Hacker-Sprinter | -6/Lower Caves Hacker-Sprinter | -6/Data Miner Hacker-Mutant | -5/Proximity Caves Hacker-Mutant | -5/Factory Resources | -11 -10 -10 -9 -9 -6 -6 -6 -6 -6 -6 -5 -5 ----------- Run | Yrd Mat Sub Rec Scr Fac Was Fac Low Low Dat Pro Fac Matter Collected 1557 | 278 301 199 72 10 161 219 182 45 37 . 11 42 Remotely . | . . . . . . . . . . . . . Salvage Created 1554 | 152 317 213 173 . 61 138 297 78 33 . 50 42 Parts 125 | 15 24 14 7 . 6 7 27 12 2 . 4 7 Haulers Intercepted 1 | . 1 . . . . . . . . . . . Recyclers Shooed . | . . . . . . . . . . . . . Parts Field Recycled . | . . . . . . . . . . . . . Retrieved Matter . | . . . . . . . . . . . . . Parts Self-Destructed 26 | . . 12 . . . . . 11 1 . 2 . Prevented 1 | . . . . . . . . . 1 . . . Parts Restored . | . . . . . . . . . . . . . Kills | -11 -10 -10 -9 -9 -6 -6 -6 -6 -6 -6 -5 -5 ------- Run | Yrd Mat Sub Rec Scr Fac Was Fac Low Low Dat Pro Fac Combat Hostiles Destroyed 25 | . 6 8 . . 1 . 3 4 . . 3 . Melee 4 | . . . . . 1 . 1 1 . . 1 . Guns 6 | . 6 . . . . . . . . . . . Cannons 8 | . . 8 . . . . . . . . . . AOE 7 | . . . . . . . 2 3 . . 2 . Classes Destroyed 14 | 2 5 2 . . 1 . 2 . 1 . 1 . Worker 5 | . 1 . . . 1 . 3 . . . . . Builder 3 | . . . . . . . 3 . . . . . Tunneler 4 | 4 . . . . . . . . . . . . Hauler 1 | . 1 . . . . . . . . . . . Recycler 5 | 1 1 . 2 . . . 1 . . . . . Minesweeper 1 | . . . . . . . . . 1 . . . Operator 6 | . . . . . . . 4 . . . . 2 Drone 1 | . . . . . . . . . . . 1 . Watcher 3 | . 2 . . . . . 1 . . . . . Swarmer 15 | . 3 4 . . . . 3 3 . . 2 . Grunt 4 | . 3 1 . . . . . . . . . . Sentry 1 | . . 1 . . . . . . . . . . Programmer 2 | . . . . . 1 . . 1 . . . . Subdweller 2 | . . 2 . . . . . . . . . . Decomposer 1 | . . . . . . . . . . . 1 . Wasp 4 | . . . . . . 4 . . . . . . Best Kill Streak 5 | 5 3 4 2 . 1 . 4 4 1 . 3 1 Combat Bots Only 4 | . 3 4 . . 1 . 2 4 . . 3 . Max Kills in Single Turn 3 | 1 2 1 1 . 1 1 2 3 1 . 2 1 Gunslinging 1 | . 1 . . . . . . . . . . . Exploded 3 | . . . . . . . 1 3 . . 2 . Melee 1 | . . . . . 1 . 1 1 . . 1 . Uniques/NPCs Destroyed . | . . . . . . . . . . . . . Combat | -11 -10 -10 -9 -9 -6 -6 -6 -6 -6 -6 -5 -5 -------- Run | Yrd Mat Sub Rec Scr Fac Was Fac Low Low Dat Pro Fac Hostile Shots Fired 216 | . 26 104 . . 4 . 30 10 15 6 2 19 Missed 100 | . 7 40 . . 4 . 18 6 10 3 1 11 Hits 116 | . 19 64 . . . . 12 4 5 3 1 8 Projectile 116 | . 19 64 . . . . 12 4 5 3 1 8 Critical Strikes 1 | . . 1 . . . . . . . . . . Damage Taken 1461 | . 191 506 . . 105 . 204 67 87 139 22 140 Core 453 | . 40 76 . . 36 . 83 32 18 108 . 60 Absorbed by Shields . | . . . . . . . . . . . . . Redirected to Shielding 48 | . . . . . 18 . . . . . . 30 Regen/Repaired (Parts) 38 | . . . . . . 2 36 . . . . . Core Remaining (%) 73 | 100 . . . 53 . . . . . . 67 . Volleys Fired 84 | 13 38 21 2 . 2 . 6 1 . . 1 . Largest 2 | 2 2 2 2 . 1 . 1 1 . . 1 . Hottest 60 | 40 40 60 60 . 5 . 43 43 . . 43 . Shots Fired 161 | 26 76 44 4 . 2 . 7 1 . . 1 . Gun 106 | 26 76 4 . . . . . . . . . . Cannon 44 | . . 40 4 . . . . . . . . . Launcher 7 | . . . . . . . 5 1 . . 1 . Special 4 | . . . . . 2 . 2 . . . . . Kinetic 150 | 26 76 44 4 . . . . . . . . . Thermal . | . . . . . . . . . . . . . Explosive 7 | . . . . . . . 5 1 . . 1 . Electromagnetic . | . . . . . . . . . . . . . Robot Hit Streak 10 | 9 10 6 2 . 1 . 3 . . . . . Robot Miss Streak 10 | 2 10 4 1 . 1 . 2 3 . . . . Penetration Max . | . . . . . . . . . . . . . Secondary Targets 2 | . 2 . . . . . . . . . . . Max Gunslinging Chain 1 | . 1 . . . . . . . . . . . Shots Hit Robots 113 | 16 38 16 2 . 3 7 16 4 3 1 2 5 Core Hits 71 | 9 20 10 2 . 2 3 12 6 1 . 4 2 Critical Kills 1 | . . . . . 1 . . . . . . . Critical Parts Destroyed . | . . . . . . . . . . . . . Critical Strikes 5 | . . . . . 1 2 2 . . . . . Smash 1 | . . . . . 1 . . . . . . . Impale 4 | . . . . . . 2 2 . . . . . Melee Attacks 125 | . . . . . 22 7 37 12 5 21 7 14 Impact 13 | . . . . . 13 . . . . . . . Slashing . | . . . . . . . . . . . . . Piercing 112 | . . . . . 9 7 37 12 5 21 7 14 Sneak Attacks 19 | . . . . . 1 7 7 1 1 1 1 . Combat Hostiles . | . . . . . . . . . . . . . Follow-up Attacks . | . . . . . . . . . . . . . Damage Inflicted 3620 | 208 433 276 33 . 105 385 1167 343 147 92 247 184 Guns 666 | 205 432 29 . . . . . . . . . . Cannons 280 | . . 247 33 . . . . . . . . . Explosions 794 | . . . . . . . 488 162 . . 144 . Melee 1876 | . . . . . 105 385 679 181 147 92 103 184 Ramming 4 | 3 1 . . . . . . . . . . . Kinetic 946 | 205 432 276 33 . . . . . . . . . Thermal . | . . . . . . . . . . . . . Explosive 794 | . . . . . . . 488 162 . . 144 . Electromagnetic . | . . . . . . . . . . . . . Impact 39 | . . . . . 39 . . . . . . . Slashing . | . . . . . . . . . . . . . Piercing 1837 | . . . . . 66 385 679 181 147 92 103 184 Highest Corruption 3 | . 2 2 2 . . . 3 3 3 3 3 . Average Corruption 2 | . 2 2 2 . . . 3 3 3 3 3 . Corruption Purged . | . . . . . . . . . . . . . Corruption Blocked . | . . . . . . . . . . . . . Effects 63 | . 8 23 8 . . . 6 5 4 5 4 . Message Errors 22 | . 3 7 4 . . . 3 1 1 1 2 . Matter Fused 9 | . 1 3 1 . . . 1 . 1 1 1 . Heat Flow Errors 5 | . . 3 . . . . 1 1 . . . . Energy Discharges 10 | . 2 3 . . . . . 3 . 2 . . Parts Fused 2 | . . 1 1 . . . . . . . . . Data Loss (minor) 9 | . 2 3 1 . . . . . 2 1 . . Data Loss (major) 2 | . . . 1 . . . . . . . 1 . Misfires 3 | . . 2 . . . . 1 . . . . . Alerts 1 | . . 1 . . . . . . . . . . Overload Shots . | . . . . . . . . . . . . . Overflow Damage 492 | . . . . . . 118 229 43 24 . 60 18 Projectiles . | . . . . . . . . . . . . . Explosions 112 | . . . . . . . 112 . . . . . Melee 380 | . . . . . . 118 117 43 24 . 60 18 Knockbacks . | . . . . . . . . . . . . . Impact . | . . . . . . . . . . . . . Kinetic . | . . . . . . . . . . . . . Secondary . | . . . . . . . . . . . . . Self-Inflicted Damage 73 | . . . . . . . 73 . . . . . Shots 1 | . . . . . . . 1 . . . . . Rammed 3 | 1 2 . . . . . . . . . . . Targets Rammed 3 | 1 2 . . . . . . . . . . . Kicked . | . . . . . . . . . . . . . Crushed . | . . . . . . . . . . . . . Highest Temperature 246 | . 18 246 . . . . 18 227 . . . . Average Temperature 75 | . 9 123 . . . . 6 120 . . . . Received Heat Transfer 357 | . 60 216 . . . . 45 18 . . . 18 Siege Activations . | . . . . . . . . . . . . . Martial Activations . | . . . . . . . . . . . . . Shielding Activations . | . . . . . . . . . . . . . Robots Disrupted . | . . . . . . . . . . . . . Combat Hostiles . | . . . . . . . . . . . . . Robots Corrupted . | . . . . . . . . . . . . . Combat Hostiles . | . . . . . . . . . . . . . Parts Fried . | . . . . . . . . . . . . . Impact Corruptions . | . . . . . . . . . . . . . Robots Melted . | . . . . . . . . . . . . . Combat Hostiles . | . . . . . . . . . . . . . Parts Melted . | . . . . . . . . . . . . . Heat Transferred . | . . . . . . . . . . . . . Parts Sabotaged . | . . . . . . . . . . . . . Parts Stolen . | . . . . . . . . . . . . . Parts Stripped . | . . . . . . . . . . . . . Power Chain Reactions . | . . . . . . . . . . . . . Alert | -11 -10 -10 -9 -9 -6 -6 -6 -6 -6 -6 -5 -5 ------- Run | Yrd Mat Sub Rec Scr Fac Was Fac Low Low Dat Pro Fac Maximum Alert Level 3 | . . . . . . . 3 . . . . 1 Low Security (%) 77 | 100 100 . 100 . 100 100 35 . . . . . Level 1 11 | . . . . . . . 21 . . . . 100 Level 2 7 | . . . . . . . 28 . . . . . Level 3 3 | . . . . . . . 15 . . . . . Level 4 . | . . . . . . . . . . . . . Level 5 . | . . . . . . . . . . . . . High Security . | . . . . . . . . . . . . . Max Security . | . . . . . . . . . . . . . Peak Influence 834 | 15 93 . 80 . 46 13 834 . . . . 329 Initial 312 | . . . 80 . . 13 . . . . . 312 Average 120 | 2 19 . 18 . 5 1 359 . . . . 311 Influence Increases 2637 | 25 208 240 55 . 108 25 1309 160 35 . 45 427 Destroy 0b10 Robot/C 700 | . 120 120 . . 20 . 320 80 . . 40 . Destroy 0b10 Robot/NC 165 | 25 25 . 10 . 5 . 80 . 5 . 5 10 Destroy Leader 150 | . 36 . . . 10 . 84 20 . . . . Allied During Kill 206 | . . . . . . . 206 . . . . . Successful Hack 56 | . 12 . . . . . 44 . . . . . Select Force Hacks 30 | . . . 30 . . . . . . . . . Disable Machine 225 | . . . 15 . 15 . 165 . . . . 30 Anti-Garrison Action 150 | . . . . . . . 150 . . . . . Destroy Structure 145 | . . . . . 13 25 95 . . . . 12 Advance Influence 300 | . . . . . . . . . . . . 300 Partial Spotted 60 | . 15 . . . . . 15 . . . . 30 Lose Combat Pursuer 450 | . . 120 . . 45 . 150 60 30 . . 45 Influence Decreases 2308 | 25 208 72 223 . 70 63 511 406 196 391 25 118 Entered New Map 914 | . . . 88 . . 25 . 296 106 391 . 8 Time Decay 1153 | 25 208 52 135 . 70 13 325 110 80 . 25 110 Lost Part 40 | . . 20 . . . . 10 . 10 . . . Lost Ally 201 | . . . . . . 25 176 . . . . . Squads Dispatched 18 | . 1 . . . 1 . 14 . . . . 2 Investigation 6 | . . . . . . . 6 . . . . . Extermination 5 | . . . . . 1 . 3 . . . . 1 Reinforcement 5 | . 1 . . . . . 3 . . . . 1 Assault 2 | . . . . . . . 2 . . . . . Garrison . | . . . . . . . . . . . . . Intercept . | . . . . . . . . . . . . . Searches Triggered . | . . . . . . . . . . . . . Construction Impeded 1 | . . . . . . . 1 . . . . . Haulers Reinforced . | . . . . . . . . . . . . . Active Scanning Responses . | . . . . . . . . . . . . . Cargo Convoy Interrupts . | . . . . . . . . . . . . . Stealth | -11 -10 -10 -9 -9 -6 -6 -6 -6 -6 -6 -5 -5 --------- Run | Yrd Mat Sub Rec Scr Fac Was Fac Low Low Dat Pro Fac Distress Signals 1 | . . . . . . . 1 . . . . . Communications Jammed . | . . . . . . . . . . . . . Distress Signals . | . . . . . . . . . . . . . Times Spotted 105 | . 18 13 . . 11 8 26 8 4 4 2 11 Peak Tracking Total 11 | . 5 4 . . 7 6 5 4 3 4 1 11 Tactical Retreats 18 | . . 3 . . 1 2 7 2 1 . . 2 Traps | -11 -10 -10 -9 -9 -6 -6 -6 -6 -6 -6 -5 -5 ------- Run | Yrd Mat Sub Rec Scr Fac Was Fac Low Low Dat Pro Fac Traps Triggered 4 | . 1 . . . 2 . 1 . . . . . Indirectly . | . . . . . . . . . . . . . Trap Hack Attempts . | . . . . . . . . . . . . . Triggered . | . . . . . . . . . . . . . Disarmed . | . . . . . . . . . . . . . Reprogrammed . | . . . . . . . . . . . . . Reused . | . . . . . . . . . . . . . Traps Extracted . | . . . . . . . . . . . . . Installed 4 | . . . . . . . . . 4 . . . Triggered . | . . . . . . . . . . . . . Machines | -11 -10 -10 -9 -9 -6 -6 -6 -6 -6 -6 -5 -5 ---------- Run | Yrd Mat Sub Rec Scr Fac Was Fac Low Low Dat Pro Fac Machines Disabled 18 | . . . 1 . 1 . 12 1 . 1 . 2 Max in Single Turn 2 | . . . 1 . 1 . 2 1 . 1 . 1 Garrison Access 2 | . . . . . 1 . 1 . . . . . Machines Repaired . | . . . . . . . . . . . . . Machines Dismantled . | . . . . . . . . . . . . . Machines Sabotaged . | . . . . . . . . . . . . . Overloaded Fab Kills . | . . . . . . . . . . . . . Hacking | -11 -10 -10 -9 -9 -6 -6 -6 -6 -6 -6 -5 -5 --------- Run | Yrd Mat Sub Rec Scr Fac Was Fac Low Low Dat Pro Fac Machines Accessed 30 | . 5 . 1 2 4 . 14 . . 4 . . Terminals 9 | . 4 . . . . . 5 . . . . . Fabricators 3 | . . . . . 2 . 1 . . . . . Repair Stations 1 | . . . . . . . 1 . . . . . Recycling Units 8 | . 1 . 1 . . . 6 . . . . . Scanalyzers 2 | . . . . . 1 . 1 . . . . . Garrison Access 1 | . . . . . 1 . . . . . . . Total Hacks 83 | . 9 . 1 4 17 . 23 . . 29 . . Successful 69 | . 5 . 1 4 13 . 17 . . 29 . . Failed 13 | . 4 . . . 3 . 6 . . . . . Catastrophic . | . . . . . . . . . . . . . Database Lockouts 1 | . . . . . 1 . . . . . . . Manual 24 | . 7 . 1 . 1 . 14 1 . . . . Terminals 19 | . 7 . . . . . 12 . . . . . Fabricators 7 | . . . . . 6 . 1 . . . . . Repair Stations 2 | . . . . . . . 2 . . . . . Recycling Units 9 | . 2 . 1 . . . 6 . . . . . Scanalyzers 12 | . . . . . 10 . 2 . . . . . Garrison Access 1 | . . . . . 1 . . . . . . . Terminal Hacks 37 | . . . . 4 . . 4 . . 29 . . Record 14 | . . . . 3 . . . . . 11 . . Part Schematic 12 | . . . . . . . 1 . . 11 . . Robot Schematic 4 | . . . . . . . . . . 4 . . Prototype ID Bank 3 | . . . . . . . . . . 3 . . Branch Access Points 1 | . . . . . . . 1 . . . . . Fabricator Index 1 | . . . . . . . 1 . . . . . Recycling Unit Index 1 | . . . . . . . 1 . . . . . Proto ID Catalog 1 | . . . . 1 . . . . . . . . Fabricator Hacks 3 | . . . . . 2 . 1 . . . . . Network Status 2 | . . . . . 1 . 1 . . . . . Build 1 | . . . . . 1 . . . . . . . Repair Station Hacks 2 | . . . . . . . 2 . . . . . Scan Component 1 | . . . . . . . 1 . . . . . Repair 1 | . . . . . . . 1 . . . . . Recycling Unit Hacks 1 | . 1 . . . . . . . . . . . Retrieve Components 1 | . 1 . . . . . . . . . . . Scanalyzer 11 | . . . . . 9 . 2 . . . . . Insert Component 1 | . . . . . . . 1 . . . . . Analyze 1 | . . . . . . . 1 . . . . . Retrieve Study 9 | . . . . . 9 . . . . . . . Garrison Access Hacks 1 | . . . . . 1 . . . . . . . Seal Access 1 | . . . . . 1 . . . . . . . Unauthorized Hacks 14 | . 4 . 1 . 1 . 8 . . . . . Terminals 6 | . 4 . . . . . 2 . . . . . Assimilate 2 | . . . . . . . 2 . . . . . Skim 4 | . 4 . . . . . . . . . . . Fabricators 1 | . . . . . 1 . . . . . . . Prioritize 1 | . . . . . 1 . . . . . . . Repair Stations . | . . . . . . . . . . . . . Recycling Units 7 | . . . 1 . . . 6 . . . . . Tunnel 1 | . . . 1 . . . . . . . . . Fedlink 6 | . . . . . . . 6 . . . . . Scanalyzers . | . . . . . . . . . . . . . Garrison Access . | . . . . . . . . . . . . . Data Cores Recovered . | . . . . . . . . . . . . . Used . | . . . . . . . . . . . . . Hacking Detections 6 | . 3 . . . . . 3 . . . . . Full Trace Events . | . . . . . . . . . . . . . Feedback Events . | . . . . . . . . . . . . . Feedback Blocked . | . . . . . . . . . . . . . Robot Schematics Acquired 4 | . . . . . . . . . . 4 . . Robots Built . | . . . . . . . . . . . . . Authchips . | . . . . . . . . . . . . . Time . | . . . . . . . . . . . . . Total Robot Build Rating . | . . . . . . . . . . . . . Part Schematics Acquired 13 | . . . . . . . 2 . . 11 . . Parts Built 1 | . . . . . 1 . . . . . . . Authchips . | . . . . . . . . . . . . . Time 128 | . . . . . 128 . . . . . . . Total Part Build Rating 8 | . . . . . 8 . . . . . . . Part Studies Acquired 8 | . . . . . 8 . . . . . . . Parts Repaired 1 | . . . . . . . 1 . . . . . Time 95 | . . . . . . . 95 . . . . . Parts Recycled . | . . . . . . . . . . . . . Recycled Matter . | . . . . . . . . . . . . . Retrieved Matter . | . . . . . . . . . . . . . Retrieved Components 2 | . 2 . . . . . . . . . . . Parts Scanalyzed 1 | . . . . . . . 1 . . . . . Part Schematics Acquired 1 | . . . . . . . 1 . . . . . Parts Damaged 1 | . . . . . . . 1 . . . . . Bothacking | -11 -10 -10 -9 -9 -6 -6 -6 -6 -6 -6 -5 -5 ------------ Run | Yrd Mat Sub Rec Scr Fac Was Fac Low Low Dat Pro Fac Used RIF Installer . | . . . . . . . . . . . . . Robots Hacked 2 | . . . . . 1 . 1 . . . . . Non-combat 2 | . . . . . 1 . 1 . . . . . Combat . | . . . . . . . . . . . . . Robot Hacks Applied 3 | . . . . . 1 . 2 . . . . . parse_system 1 | . . . . . . . 1 . . . . . find_chute 1 | . . . . . 1 . . . . . . . check_alert 1 | . . . . . . . 1 . . . . . Relay Couplers Released 2 | . . . . . . . 2 . . . . . Machine Destruction 2 | . . . . . . . 2 . . . . . Fabnet Peak Effective % . | . . . . . . . . . . . . . Robots Rewired . | . . . . . . . . . . . . . Allies Hacked . | . . . . . . . . . . . . . Hacks Repelled . | . . . . . . . . . . . . . Allies | -11 -10 -10 -9 -9 -6 -6 -6 -6 -6 -6 -5 -5 -------- Run | Yrd Mat Sub Rec Scr Fac Was Fac Low Low Dat Pro Fac Total Allies 22 | . . . . . . 20 2 . . . . . Largest Group 19 | . . . . . . 19 12 . . . . . Highest-Rated Group 684 | . . . . . . 684 484 . . . . . Highest-Rated Ally 50 | . . . . . . 50 50 . . . . . Total Orders . | . . . . . . . . . . . . . Ally Attacks 215 | . . . . . . 132 83 . . . . . Total Damage 7725 | . . . . . . 5436 2289 . . . . . Kills 26 | . . . . . . 7 19 . . . . . Allies Corrupted . | . . . . . . . . . . . . . Allies Melted 1 | . . . . . . . 1 . . . . . Intel | -11 -10 -10 -9 -9 -6 -6 -6 -6 -6 -6 -5 -5 ------- Run | Yrd Mat Sub Rec Scr Fac Was Fac Low Low Dat Pro Fac Active Infowar (turns) 6620 | 35 907 1340 525 873 578 295 921 235 164 321 196 230 Optics 1413 | . . . . . 578 295 540 . . . . . Sensors 2937 | . . . . . 577 295 921 235 162 321 196 230 Traps 2 | . . . . . . . . . 2 . . . Seismic 3949 | 35 907 1340 525 873 269 . . . . . . . Robot Analysis Total . | . . . . . . . . . . . . . Derelict Logs Recovered 7 | . . 1 . 3 . . . 2 1 . . . Drone Launches . | . . . . . . . . . . . . . Drone Recoveries . | . . . . . . . . . . . . . Exploration | -11 -10 -10 -9 -9 -6 -6 -6 -6 -6 -6 -5 -5 ------------- Run | Yrd Mat Sub Rec Scr Fac Was Fac Low Low Dat Pro Fac Turns Passed 7286 | 132 907 1340 525 1433 586 295 921 235 165 321 196 230 Spaces Moved 7341 | 50 434 406 391 1176 1072 377 1547 510 344 160 369 505 Core 3 | 2 . . . . 1 . . . . . . . Treads 870 | 48 434 388 . . . . . . . . . . Legs . | . . . . . . . . . . . . . Wheels 1585 | . . 18 391 1176 . . . . . . . . Hover . | . . . . . . . . . . . . . Flight 4883 | . . . . . 1071 377 1547 510 344 160 369 505 Fastest Speed 25 | 50 160 130 119 119 25 31 31 31 31 31 35 30 Average Speed 76 | 155 182 312 130 119 30 31 31 31 31 31 35 33 Slowest Speed 480 | 160 320 480 150 119 400 32 32 31 34 35 35 35 Overloaded Moves . | . . . . . . . . . . . . . Propulsion Burnouts . | . . . . . . . . . . . . . Robots Hopped 5 | . . . . . 1 . 2 . . . 1 1 Potential Cave-ins . | . . . . . . . . . . . . . Cave-ins Triggered . | . . . . . . . . . . . . . Exploration Rate (%) 51 | 4 60 29 72 76 27 90 50 65 47 80 60 13 Regions Visited 12 Branch Regions 7 Pre-discovered Areas 3 | . . . 1 . . . 1 . . 1 . . Known Exits Taken 5 | . . . . . . . 1 1 1 1 1 . Unknown Exits Taken 5 | 1 1 1 1 1 . . . . . . . . Scrap Searched 10 | . . . . 7 . . . 2 1 . . . Spaces Dug 43 | . . . . . 13 . 17 3 . . 4 6 Terrain Destroyed 139 | . . . . . 13 . 87 17 . . 16 6 Melee 43 | . . . . . 13 . 17 3 . . 4 6 Projectile . | . . . . . . . . . . . . . AOE 96 | . . . . . . . 70 14 . . 12 . Terrain Rammed . | . . . . . . . . . . . . . Walls Destroyed . | . . . . . . . . . . . . . Machines Disabled . | . . . . . . . . . . . . . Actions | -11 -10 -10 -9 -9 -6 -6 -6 -6 -6 -6 -5 -5 --------- Run | Yrd Mat Sub Rec Scr Fac Was Fac Low Low Dat Pro Fac Total 8692 | 78 482 435 402 1209 1303 544 1916 567 393 398 421 544 Wait 991 | . 1 . . 20 164 145 302 39 37 218 44 21 Move 7320 | 49 433 405 390 1175 1070 376 1542 509 343 159 366 503 Hop 5 | . . . . . 1 . 2 . . . 1 1 Pick Up 53 | 6 5 5 6 8 11 3 6 1 . . . 2 Fast Attach 21 | 7 . . . 2 7 . 2 . 1 . . 2 Attach 15 | . . 1 1 . 9 . 1 1 1 . . 1 Detach 5 | . . . 2 1 1 . 1 . . . . . Swap 27 | . 1 3 1 1 3 6 7 2 1 . 2 . Drop 39 | 2 2 . . 2 13 7 10 2 1 . . . Fire 84 | 13 38 21 2 . 2 . 6 1 . . 1 . Melee 125 | . . . . . 22 7 37 12 5 21 7 14 Ram . | . . . . . . . . . . . . . Kick . | . . . . . . . . . . . . . Crush 3 | 1 2 . . . . . . . . . . . Escape Stasis . | . . . . . . . . . . . . . Rewire . | . . . . . . . . . . . . . Trap 4 | . . . . . . . . . 4 . . . Miscellaneous . | . . . . . . . . . . . . . Route ------- -11/Scrapyard -10/Materials (discovered 3 exits: [*Mat x2] / [*Sub]) -10/Subcaves -9/Recycling (discovered 2 exits: [*Fac] / *Scr) -9/Scraptown (discovered 2 exits: *Fac x2) -6/Factory -6/Waste -6/Factory (discovered 4 exits: *Fac x2 / *Low x2) -6/Lower Caves -6/Lower Caves -6/Data Miner -5/Proximity Caves -5/Factory (discovered 1 exit: *Upp) History --------- Turn | Location | Event 6 | -11/Scrapyard | Discovered new exit (range 15) 133 | -11/Scrapyard | Entered Materials 302 | -10/Materials | Build established: Mutant 525 | -10/Materials | Discovered new exit (range 14) 616 | -10/Materials | Discovered new exit (range 12) 1008 | -10/Materials | Discovered new exit (range 9) 1040 | -10/Materials | Entered Subcaves 2286 | -10/Subcaves | Learned Materials garrison access intel 2360 | -10/Subcaves | Discovered new exit (range 16) 2380 | -10/Subcaves | Entered Recycling 2566 | -9/Recycling | Discovered new exit (range 11) 2874 | -9/Recycling | Scanned before Scraplab entrance 2892 | -9/Recycling | Entered Scraplab 2902 | -9/Recycling | Discovered new exit (range 3) 2905 | -9/Recycling | Entered Scraptown 2905 | -9/Scraptown | System corruption cleaned by C-Scrubber 3047 | -9/Scraptown | Heard Great Nut preacher, LISTEN AND RECITE! 3109 | -9/Scraptown | Discovered new exit (range 9) 3166 | -9/Scraptown | Scanned Subdweller tech in exchange for log data 3168 | -9/Scraptown | Learned Factory garrison access intel 3170 | -9/Scraptown | Learned location of 1 exit from Lower Caves 3234 | -9/Scraptown | Visited UFD Registry 3234 | -9/Scraptown | Registered with UFD as "Shocklauncher" 3265 | -9/Scraptown | Visited Science Guys 3309 | -9/Scraptown | Visited Curators Association 3328 | -9/Scraptown | Visited Abandonware Association 3341 | -9/Scraptown | Learned abandonware demo "ERRANTS.EXE" 3367 | -9/Scraptown | Visited Scrap Suit Storage 3385 | -9/Scraptown | Visited Supply Room 3403 | -9/Scraptown | Visited Junk Repository 3461 | -9/Scraptown | Visited Junk Cannon Lab 3483 | -9/Scraptown | Found Prototype Special Weapon 3483 | -9/Scraptown | Identified Junk Cannon 3507 | -9/Scraptown | Visited Science Testing Area 3564 | -9/Scraptown | Visited Assassins FH 3653 | -9/Scraptown | Received an X-ray algorithm 3744 | -9/Scraptown | Visited Bundlers 4276 | -9/Scraptown | Met Optimus 4276 | -9/Scraptown | Accepted into 0bPrime 4335 | -9/Scraptown | Discovered new exit (range 3) 4338 | -9/Scraptown | Entered Factory 4338 | -6/Factory | Evolved 8 slots: Propulsion x3, Utility x5 4339 | -6/Factory | Loaded intel: 4 garrison access locations 4485 | -6/Factory | Fabricated Impulse Thruster Array (x1) 4544 | -6/Factory | Spotted B-75 Beast 4677 | -6/Factory | Discovered new exit (range 21) 4684 | -6/Factory | Identified exit to Factory 4689 | -6/Factory | Central database locked down 4892 | -6/Factory | Build established: Hacker-Scout 4924 | -6/Factory | Sucked down chute 4924 | -6/Factory | Entered Waste 4925 | -6/Waste | Met a frightened Derelict 4927 | -6/Waste | Spotted C-40 Crusher 4932 | -6/Waste | Spotted C-40 Crusher 4938 | -6/Waste | Spotted C-40 Crusher 4941 | -6/Waste | Spotted C-40 Crusher 4941 | -6/Waste | Spotted C-40 Crusher 4943 | -6/Waste | Discovered new exit (range 21) 4970 | -6/Waste | Spotted C-40 Crusher 5015 | -6/Waste | Warlord forces began an assault 5031 | -6/Waste | Allies destroyed C-40 Crusher 5040 | -6/Waste | Allies destroyed C-40 Crusher 5047 | -6/Waste | Allies destroyed C-40 Crusher 5049 | -6/Waste | Allies destroyed C-40 Crusher 5054 | -6/Waste | Allies destroyed C-40 Crusher 5055 | -6/Waste | Allies destroyed C-40 Crusher 5077 | -6/Waste | Lost 3 allies 5144 | -6/Waste | Murdered 4 allies 5156 | -6/Waste | Identified exit to Factory 5219 | -6/Waste | Entered Factory 5219 | -6/Factory | Accompanied by 12 allies 5247 | -6/Factory | Identified exit to Lower Caves 5402 | -6/Factory | Repaired Broken Q-thruster 5476 | -6/Factory | Discovered exit to Factory (range 21) 5594 | -6/Factory | Loaded intel: 8 recycling unit locations 5608 | -6/Factory | Learned location of Protoforge (-3) 5746 | -6/Factory | Discovered exit to Factory (range 21) 6054 | -6/Factory | Build established: Hacker-Sprinter 6140 | -6/Factory | Entered Lower Caves 6141 | -6/Lower Caves | Identified exit to Lower Caves 6181 | -6/Lower Caves | Encountered a Warlord checkpoint 6314 | -6/Lower Caves | Learned Factory non-interactive machine intel 6315 | -6/Lower Caves | Learned Factory garrison access intel 6361 | -6/Lower Caves | Acquired the password to a Derelict Tinkerer's latest research 6366 | -6/Lower Caves | Found Prototype Special Weapon 6375 | -6/Lower Caves | Entered another Lower Caves area 6404 | -6/Lower Caves | Learned 4 Factory zone layouts 6503 | -6/Lower Caves | Discovered new exit (range 9) 6540 | -6/Lower Caves | Identified exit to Data Miner 6540 | -6/Lower Caves | Entered Data Miner 6540 | -6/Data Miner | Discovered new exit (range 6) 6546 | -6/Data Miner | Met Data Miner 6554 | -6/Data Miner | Learned location of Section 7 (-3) 6554 | -6/Data Miner | Acquired the access code to Warlord's prototype stash 6557 | -6/Data Miner | Received God Mode back door access code from Data Miner 6566 | -6/Data Miner | Data Conduit disabled 6860 | -6/Data Miner | Identified exit to Proximity Caves 6861 | -6/Data Miner | Entered Proximity Caves 6934 | -5/Proximity Caves | Spotter reported a threat 6984 | -5/Proximity Caves | Spotter reported a threat 7007 | -5/Proximity Caves | Attracted the attention of an 0b10 checkpoint 7054 | -5/Proximity Caves | Discovered exit to Factory (range 9) 7057 | -5/Proximity Caves | Entered Factory 7057 | -5/Factory | Evolved 2 slots: Propulsion x1, Utility x1 7058 | -5/Factory | Identified exit to Upper Caves 7059 | -5/Factory | Loaded intel: 205 non-interactive machine locations 7060 | -5/Factory | Loaded intel: 4 garrison access locations 7156 | -5/Factory | Build established: Hacker-Mutant 7287 | -5/Factory | Self-destructed Last Messages --------------- 07087_ Acquired 17 matter. 07096_ U-05 Engineer works on Subcomponent Replicator. 07118_ O-24 Administrator: "IFF HANDSHAKE FAILED. SECURING TERMINAL." 07119_ O-24 Administrator uses terminal to summon reinforcements. 07119_ ALERT: Hostiles spotted, dispatching reinforcements to Terminal F018. 07119_ O-24 Administrator locks terminal. 07124_ Terminal disabled. 07133_ O-24 Administrator destroyed. 07135_ Acquired 25 matter. 07136_ Acquired System Shield. 07137_ Acquired Hacking Suite. 07204_ Acquired Xenon Bombardment Thruster. 07224_ ALERT: Potential suspicious activity detected, Programmers report to Factory Zone 2U. 07228_ Acquired Field Propulsion Drive. 07268_ K-01 Serf collects debris. Map ----- +----------------------------------------------------+ | ??????????????# # #???# + + | | ??????????????# # #???# # # | | ??????????????# # #???# !! # # | | ??????????????# # #???# !! # # | | ??????????????# # #???# !! # # | | ??????????????# # #???# # # | | ??????????????# # #?### # # | | ??????????????# # #?# ##/########### # | | ??????????????# # #? ????????# # | | ??????????????# # #? ????????# # | | ??????????????# # ???" "" ?????????# # | | ??????????????# #??????"F"" ?????????# # | | ??????????????# #?? #???"" ??????????# # | | ??????????????# # #??? ??????????# # | | ????###+###########/##### #####+############ # | | ? # | | ? w # | | ? # | | ??#####+###########/########## ####+############## | | ?????????????# ! p #??# # #????????? | | ?????????????# #??# # """ #????????? | | ?????????????# """"""" #??# # """"" #????????? | | ?????????????# """"""" #??# + """"" #????????# | | ?????????????# """"""" #??# # #????????# | | ?????????????# """"""" #### # """ #????????# | | ?????????????# @/ # """"" #???????## | | ?????"""""""?# = ## # """"" #???????? | | ?????"""""""?# " " ## # #????????# | | ?????"""""""?? "T" ## ##########????????# | | ?????"""""""???""" ## #?# ##??????????# | | ??????????????? ## #?# #???????????# | | ??????????????############## #?# #???????????# | | ???????????????????????????# #?# #???????????# | | ???????????????????????????# #?# ##??????????# | | ???????????????????######### ### "######?????# | | ???????????????????# # ## # ####### | | ???????????????????# """ # ###+## | | ???????????????????# """ + ! > | | ???????????????????# """ # ### ## | | ???????????????????# # #?# ## ####### | | ???????????????????# #######?# ########?????? | | ???????????????????########???????#+######???????? | | ??????????????????????????????????# ???????? | | ??????????????????????????????????#"" ???????? | | ??????????????????????????????????#"" """?"""?"" | | ??????????????????????????????????#"T """?"""?"" | | ??????????????????????????????????#"" """?"""?"" | | ??????????????????????????????????#"" ???????? | | ??????????????????????????????????# ???????? | | ??????????????????????????????????########???????? | +----------------------------------------------------+ Best States ------------- Heat Dissipation 40 Energy Generation 17 Energy Capacity 250 Matter Stores 300 Matter Capacity 300 Sight Range 22 Robot Scan Range 16 Terrain Scan Density 10 Power Amplification 20 Propulsion Shielding 66 Evasion (%) 65 Recoil Reduction 2 Offensive Hacking 32 Defensive Hacking 10 Item Schematics ----------------- Cld. Cesium-ion Thruster | -6/Factory | Scanalyzed Cld. VTOL Module | -6/Factory | Hacked Combat Drone Bay | -6/Data Miner | Free Lgt. Regenerative Plating | -6/Data Miner | Free Cld. Nuclear Pulse Thruster | -6/Data Miner | Free Exp. Heat Sink | -6/Data Miner | Free Kinetic Spear | -6/Data Miner | Free Shield Leg | -6/Data Miner | Free Adv. Coolant Injector | -6/Data Miner | Free Hvy. Gauss Cannon | -6/Data Miner | Free Remote Force Field | -6/Data Miner | Free Nova Cannon | -6/Data Miner | Free Adv. Thermal Shield | -6/Data Miner | Free Robot Schematics ------------------ G-50 Soldier | -6/Data Miner | Free B-60 Warrior | -6/Data Miner | Free A-15 Conveyor | -6/Data Miner | Free A-27 Freighter | -6/Data Miner | Free Fabricated ------------ Impulse Thruster Array | x1 | -6/Factory | Preloaded Repaired ---------- Q-thruster | 10% | -6/Factory | Broken Studied --------- Mic. Nuclear Core | -6/Factory | Hacked VTOL Module | -6/Factory | Hacked Flight Unit | -6/Factory | Hacked Lgt. Angular Momentum Engine | -6/Factory | Hacked Ion Engine | -6/Factory | Hacked Mace | -6/Factory | Hacked Remote Datajack | -6/Factory | Hacked Rocket Launcher | -6/Factory | Hacked Alien Tech Used ----------------- None Achievements -------------- Backstab Let's See Who's Tougher Maybe Next Time I'll Detach My Launcher My Bad Part-time Excavator Challenges ------------ None Game ------ Seed MiningSapperTearclaws Manual? 0 Play Time 00:54:38 Cumulative 8.6 hours Start 2025.10.30 @ 20:55:26 End 2025.10.30 @ 22:53:58 Sessions 3 Manual Loads 0 Difficulty Rogue Special Mode None Game No. 5 Rogue 5 Adventurer 0 Explorer 0 Win Type - Total 0 Types 0/0/0/0/0/0/0/0/0/0 Lore% 7 Gallery% 15 Achievement% 29 Wizard Run 0 Options --------- Layout 1 ASCII 0 Keyboard 0 Movement Arrows Keybinds 0 Fullscreen 1 Font 20/Terminus Map View 55x45 Zoom Use 0% Tactical HUD 1 Map Filters NONE Filters NONE Steam 0 RUN: 86523c71-b304-41f7-bdaf-6503638fb35b